Workbook

Sheet ------ (hidden)

Sheet VXXXXX (hidden)

Sheet 징수실적
G1: 2017년 6월분 지방세 징수실적 보고서 (2017 회계)
R3: (단위 : 천원)
A4: 구 분 | E4: 목 표액 (예산액) | G4: 부 과 액 | I4: 징 수 액 | K4: 불납결손액 | M4: 미 수 납 액 | N4: 징 수 비 율 | Q4: 과오납 환부액
E5: 당 초 | F5: 최 종 | G5: 본월분 | H5: 누 계 | I5: 본월분 | J5: 누 계 | K5: 본월분 | L5: 누 계 | N5: 대목표 (당초) | O5: 대목표 (최종) | P5: 대부과 | Q5: 본월분 | R5: 누 계
A6: 총 괄 | B6: 합 계 | E6: =SUM(E7:E8) -> 308,152,000 | F6: 0 | G6: =SUM(G7:G8) -> 37,506,415 | H6: 260,504,472 | I6: 34,731,379 | J6: =SUM(J7:J8) -> 249,778,937 | K6: 174,999 | L6: 285,157 | M6: 10,440,378 | N6: =+J6/E6*100 -> 81.1 | O6: =+J6/F6*100 ->  | P6: =+J6/H6*100 -> 95.9 | Q6: =SUM(Q7:Q8) -> 631,480 | R6: =SUM(R7:R8) -> 3,065,917
B7: 도 세 | E7: =E10+E45+E46 -> 90,500,000 | F7: 0 | G7: 16,056,815 | H7: 63,989,033 | I7: 15,543,893 | J7: 61,376,209 | K7: 14,675 | L7: 26,498 | M7: 2,586,326 | N7: 67.8 | P7: 95.9 | Q7: =Q10+Q45+Q46 -> 34,324 | R7: =R10+R45+R46 -> 720,584
B8: 시 군 세 | E8: =E30+E47 -> 217,652,000 | F8: =F30+F47 -> 0 | G8: 21,449,600 | H8: 196,515,439 | I8: 19,187,486 | J8: 188,402,728 | K8: 160,324 | L8: 258,659 | M8: 7,854,052 | N8: 86.6 | P8: 95.9 | Q8: =Q30+Q47 -> 597,156 | R8: =R30+R47 -> 2,345,333
A9: 현 년 도 | B9: 계 | E9: =SUM(E10,E30) -> 306,752,000 | F9: 0 | G9: 37,931,040 | H9: 252,547,621 | I9: 34,914,363 | J9: 248,855,531 | K9: 903 | L9: 903 | M9: 3,691,187 | N9: 81.1 | P9: 98.5 | Q9: =SUM(Q10,Q30) -> 173,201 | R9: =SUM(R10,R30) -> 747,883
B10: 도 세 | C10: 소 계 | E10: =SUM(E11,E12,E15,E18:E22,E23) -> 89,800,000 | F10: 0 | G10: 16,058,650 | H10: 61,843,225 | I10: 15,460,207 | J10: 61,037,650 | K10: 0 | L10: 0 | M10: 805,575 | N10: 68.0 | P10: 98.7 | Q10: =SUM(Q11,Q12,Q15,Q18:Q22,Q23) -> 26,690 | R10: =SUM(R11,R12,R15,R18:R22,R23) -> 311,537
C11: 취 득 세 | E11: 50,000,000 | G11: 11,043,246 | H11: 43,904,284 | I11: 10,963,910 | J11: 43,686,009 | K11: 0 | L11: 0 | M11: =H11-J11-L11 -> 218,275 | N11: 87.4 | P11: 99.5 | Q11: 17,856 | R11: 242,250
C12: 등 록 면허세 | D12: 소 계 | E12: =SUM(E13:E14) -> 6,800,000 | F12: 0 | G12: 578,407 | H12: 4,104,292 | I12: 582,641 | J12: 4,066,071 | K12: 0 | L12: 0 | M12: 38,221 | N12: 59.8 | Q12: =SUM(Q13:Q14) -> 1,200 | R12: =SUM(R13:R14) -> 11,320
D13: 등록분 | E13: 5,806,154 | G13: 555,252 | H13: 3,126,661 | I13: 555,100 | J13: 3,112,179 | K13: 0 | L13: 0 | M13: =H13-J13-L13 -> 14,482 | N13: 53.6 | P13: 99.5 | Q13: 1,200 | R13: 10,999
D14: 면허분 | E14: 993,846 | G14: 23,155 | H14: 977,631 | I14: 27,541 | J14: 953,892 | K14: 0 | L14: 0 | M14: =H14-J14-L14 -> 23,739 | N14: 96.0 | P14: 97.6 | Q14: 0 | R14: 321
C15: 지 역 자 원 시설세 | D15: 소 계 | E15: =SUM(E16:E17) -> 11,000,000 | F15: 0 | G15: 247,867 | H15: 1,732,224 | I15: 246,149 | J15: 1,729,446 | K15: 0 | L15: 0 | M15: 2,778 | N15: 15.7 | P15: 99.8 | Q15: =SUM(Q16:Q17) -> 0 | R15: =SUM(R16:R17) -> 6
D16: 특정자원 | E16: 2,433,150 | G16: 245,412 | H16: 1,729,732 | I16: 246,118 | J16: 1,729,378 | K16: 0 | L16: 0 | M16: =H16-J16-L16 -> 354 | N16: 71.1 | P16: 100.0 | Q16: 0 | R16: 6
D17: 특정부동산 | E17: 8,566,850 | G17: 2,455 | H17: 2,492 | I17: 31 | J17: 68 | M17: 2,424 | N17: 0.0 | P17: 2.7
C18: 지방소비세 | M18: 0
C19: 등 록 세 | G19: 3,425 | H19: 45,833 | I19: 3,425 | J19: 45,833 | K19: 0 | L19: 0 | M19: 0 | P19: 100.0 | R19: 855
C20: 면 허 세 | M20: 0
C21: 공동시설세 | M21: 0
C22: 지역개발세 | M22: 0
C23: 지 방 교 육 세 | D23: 소 계 | E23: =SUM(E24:E29) -> 22,000,000 | F23: =SUM(F24:F29) -> 0 | G23: 4,185,705 | H23: 12,056,592 | I23: 3,664,082 | J23: 11,510,291 | K23: 0 | L23: 0 | M23: 546,301 | N23: 52.3 | P23: 95.5 | Q23: =SUM(Q24:Q29) -> 7,634 | R23: =SUM(R24:R29) -> 57,106
D24: 취득세분 | E24: 2,509,000 | G24: 786,030 | H24: 2,604,287 | I24: 783,092 | J24: 2,592,149 | M24: =H24-J24-L24 -> 12,138 | N24: 103.3 | P24: 99.5 | Q24: 792 | R24: 17,799
D25: 등록면허세분 | E25: 1,828,000 | G25: 94,556 | H25: 520,664 | I25: 94,524 | J25: 517,769 | M25: 2,895 | N25: 28.3 | P25: 99.4 | Q25: 240 | R25: 2,122
D26: 주민세분 | E26: 86,000 | G26: 0 | H26: 190 | I26: 0 | J26: 180 | M26: 10 | N26: 0.2 | P26: 94.7
D27: 재산세분 | E27: 3,065,000 | G27: 3,696 | H27: 13,640 | I27: 227 | J27: 10,162 | M27: 3,478 | N27: 0.3 | P27: 74.5
D28: 자동차세분 | E28: 5,926,000 | G28: 2,535,557 | H28: 4,389,776 | I28: 2,020,373 | J28: 3,861,996 | M28: 527,780 | N28: 65.2 | P28: 88.0 | Q28: 6,602 | R28: 37,185
D29: 담배소비세분 | E29: 8,586,000 | G29: 765,866 | H29: 4,528,035 | I29: 765,866 | J29: 4,528,035 | M29: 0 | N29: 52.7 | P29: 100.0
B30: 시 군 세 | C30: 소 계 | E30: =SUM(E31,E32,E33,E36:E43) -> 216,952,000 | F30: =SUM(F31,F32,F33,F36:F43) -> 0 | G30: 21,872,390 | H30: =SUM(H31,H32,H33,H36:H43) -> 190,704,396 | I30: 19,454,156 | J30: 187,817,881 | K30: 903 | L30: 903 | M30: 2,885,612 | N30: 86.6 | P30: 98.5 | Q30: =SUM(Q31,Q32,Q33,Q36:Q43) -> 146,511 | R30: =SUM(R31,R32,R33,R36:R43) -> 436,346
C31: 주 민 세 | E31: 12,252,000 | G31: 714,816 | H31: 5,587,517 | I31: 708,890 | J31: 5,581,304 | K31: 0 | L31: 0 | M31: =H31-J31-L31 -> 6,213 | N31: 45.6 | P31: 99.9 | Q31: 9,879 | R31: 10,852
C32: 재 산 세 | E32: 35,000,000 | G32: 22,324 | H32: 72,391 | I32: 1,474 | J32: 51,492 | K32: 0 | L32: 0 | M32: =H32-J32-L32 -> 20,899 | N32: 0.1 | P32: 71.1
C33: 자동 차세 | D33: 소 계 | E33: =SUM(E34:E35) -> 55,700,000 | F33: =SUM(F34:F35) -> 0 | G33: 12,622,745 | H33: 34,456,551 | I33: 10,747,451 | J33: =SUM(J34:J35) -> 32,536,957 | K33: 21 | L33: 21 | M33: 1,919,573 | N33: 58.4 | P33: 94.4 | Q33: =SUM(Q34:Q35) -> 23,008 | R33: =SUM(R34:R35) -> 128,349
D34: 자동차분 | E34: 20,216,000 | G34: 9,415,099 | H34: 15,777,782 | I34: 7,539,805 | J34: 13,858,188 | K34: 21 | L34: 21 | M34: =H34-J34-L34 -> 1,919,573 | N34: 68.6 | P34: 87.8 | Q34: 23,008 | R34: 128,349
D35: 주 행 분 | E35: 35,484,000 | G35: 3,207,646 | H35: 18,678,769 | I35: 3,207,646 | J35: 18,678,769 | K35: 0 | L35: 0 | M35: 0 | N35: 52.6 | P35: 100.0
C36: 담배소비세 | E36: 19,000,000 | G36: 1,741,030 | H36: 10,692,089 | I36: 1,741,030 | J36: 10,692,089 | K36: 0 | L36: 0 | M36: 0 | N36: 56.3 | P36: 100.0
C37: 지방소득세 | E37: 95,000,000 | G37: =6767281+4194 -> 6,771,475 | H37: =139891654+4194 -> 139,895,848 | I37: 6,255,311 | J37: 138,956,039 | K37: 882 | L37: 882 | M37: 938,927 | N37: 146.3 | P37: 99.3 | Q37: 113,624 | R37: 297,145
C38: 주 행 세 | M38: 0
C39: 농업소득세 | M39: 0
C40: 도 축 세 | M40: 0
C41: 종합토지세 | M41: 0
C42: 도시계획세 | M42: 0
C43: 사 업 소세 | M43: 0
A44: 과 년 도 | B44: 계 | E44: =SUM(E45:E47) -> 1,400,000 | F44: =SUM(F45:F47) -> 0 | G44: -424,625 | H44: 7,956,851 | I44: -182,984 | J44: 923,406 | K44: 174,096 | L44: 284,254 | M44: 6,749,191 | N44: 66.0 | P44: 11.6 | Q44: =SUM(Q45:Q47) -> 458,279 | R44: =SUM(R45:R47) -> 2,318,034
B45: 도 세 | E45: 317,332 | G45: -3,264 | H45: 914,766 | I45: 43,862 | J45: -202,020 | K45: 8,274 | L45: 12,666 | M45: =H45-J45-L45 -> 1,104,120 | N45: -63.7 | P45: -22.1 | Q45: 6,813 | R45: 373,915
B46: 지방교육세 | E46: 382,668 | G46: 1,429 | H46: 1,231,042 | I46: 39,824 | J46: 540,579 | K46: 6,401 | L46: 13,832 | M46: =H46-J46-L46 -> 676,631 | N46: 141.3 | P46: 43.9 | Q46: 821 | R46: 35,132
B47: 시 군 세 | E47: 700,000 | G47: -422,790 | H47: 5,811,043 | I47: -266,670 | J47: 584,847 | K47: 159,421 | L47: 257,756 | M47: =H47-J47-L47 -> 4,968,440 | N47: 83.5 | P47: 10.1 | Q47: 450,645 | R47: 1,908,987
